[Event "Titled Tuesday Blitz September 13 Early 2022"]
[White "Malek, Jan"]
[Black "Paravyan, David"]
[WhiteFideId "21864080"]
[BlackFideId "4194985"]
[WhiteElo "2172"]
[BlackElo "2555"]
[Result "0-1"]
[Round "03"]
[TimeControl "180+1"]
[Date "2022.09.13"]
[WhiteClock "0:00:03"]
[BlackClock "0:00:03"]

1. Nf3 {[%clk 0:02:56]}  Nf6 {[%clk 0:02:58]} 2. c4 {[%clk 0:02:56]}  g6 {[%clk 0:02:57]} 3. Nc3 {[%clk 0:02:56]}  d5 {[%clk 0:02:54]} 4. cxd5 {[%clk 0:02:55]}  Nxd5 {[%clk 0:02:55]} 5. e4 {[%clk 0:02:54]}  Nxc3 {[%clk 0:02:51]} 6. dxc3 {[%clk 0:02:55]}  Qxd1+ {[%clk 0:02:50]} 7. Kxd1 {[%clk 0:02:56]}  f6 {[%clk 0:02:44]} 8. h4 {[%clk 0:02:56]}  Bg4 {[%clk 0:02:42]} 9. Be2 {[%clk 0:02:52]}  Nc6 {[%clk 0:02:40]} 10. Be3 {[%clk 0:02:46]}  h5 {[%clk 0:02:39]} 11. Nd4 {[%clk 0:02:43]}  Bxe2+ {[%clk 0:02:35]} 12. Kxe2 {[%clk 0:02:44]}  Kd7 {[%clk 0:02:04]} 13. Rhd1 {[%clk 0:02:33]}  e5 {[%clk 0:02:03]} 14. Nxc6+ {[%clk 0:02:12]}  Kxc6 {[%clk 0:02:04]} 15. Rd5 {[%clk 0:02:11]}  Bd6 {[%clk 0:02:00]} 16. c4 {[%clk 0:02:09]}  a6 {[%clk 0:01:39]} 17. a4 {[%clk 0:02:06]}  Rhe8 {[%clk 0:01:19]} 18. c5 {[%clk 0:01:47]}  Be7 {[%clk 0:01:11]} 19. b4 {[%clk 0:01:46]}  Rad8 {[%clk 0:01:06]} 20. Rad1 {[%clk 0:01:17]}  Rxd5 {[%clk 0:00:54]} 21. exd5+ {[%clk 0:00:51]}  Kd7 {[%clk 0:00:55]} 22. b5 {[%clk 0:00:49]}  axb5 {[%clk 0:00:54]} 23. axb5 {[%clk 0:00:50]}  Ra8 {[%clk 0:00:51]} 24. c6+ {[%clk 0:00:37]}  bxc6 {[%clk 0:00:52]} 25. dxc6+ {[%clk 0:00:37]}  Ke6 {[%clk 0:00:50]} 26. Rd7 {[%clk 0:00:36]}  Bd6 {[%clk 0:00:50]} 27. b6 {[%clk 0:00:28]}  cxb6 {[%clk 0:00:48]} 28. Bxb6 {[%clk 0:00:27]}  Rc8 {[%clk 0:00:48]} 29. Rg7 {[%clk 0:00:13]}  Rxc6 {[%clk 0:00:48]} 30. Be3 {[%clk 0:00:10]}  Kf5 {[%clk 0:00:48]} 31. f3 {[%clk 0:00:11]}  e4 {[%clk 0:00:25]} 32. fxe4+ {[%clk 0:00:07]}  Kxe4 {[%clk 0:00:26]} 33. Rxg6 {[%clk 0:00:07]}  Rc2+ {[%clk 0:00:26]} 34. Kd1 {[%clk 0:00:08]}  Ra2 {[%clk 0:00:21]} 35. Rxf6 {[%clk 0:00:07]}  Be5 {[%clk 0:00:18]} 36. Re6 {[%clk 0:00:07]}  Rxg2 {[%clk 0:00:11]} 37. Bg5 {[%clk 0:00:07]}  Kf5 {[%clk 0:00:11]} 38. Rh6 {[%clk 0:00:06]}  Kg4 {[%clk 0:00:09]} 39. Re6 {[%clk 0:00:06]}  Bg3 {[%clk 0:00:08]} 40. Re4+ {[%clk 0:00:03]}  Kf5 {[%clk 0:00:08]} 41. Re3 {[%clk 0:00:03]}  Bf2 {[%clk 0:00:05]} 42. Rf3+ {[%clk 0:00:03]}  Kg4 {[%clk 0:00:05]} 43. Rf4+ {[%clk 0:00:04]}  Kh3 {[%clk 0:00:05]} 44. Rf5 {[%clk 0:00:02]}  Bg3 {[%clk 0:00:03]} 45. Rf3 {[%clk 0:00:02]}  Kg4 {[%clk 0:00:03]} 46. Rf7 {[%clk 0:00:02]}  Ra2 {[%clk 0:00:03]} 47. Rf6 {[%clk 0:00:02]}  Rh2 {[%clk 0:00:02]} 48. Rf7 {[%clk 0:00:02]}  Rb2 {[%clk 0:00:02]} 49. Rg7 {[%clk 0:00:02]}  Kh3 {[%clk 0:00:02]} 50. Rg6 {[%clk 0:00:02]}  Bxh4 {[%clk 0:00:02]} 51. Bxh4 {[%clk 0:00:02]}  Kxh4 {[%clk 0:00:02]} 52. Ke1 {[%clk 0:00:03]}  Kh3 {[%clk 0:00:02]} 53. Kf1 {[%clk 0:00:04]}  Kh2 {[%clk 0:00:03]} 54. Rh6 {[%clk 0:00:04]}  Rb5 {[%clk 0:00:03]} 55. Kf2 {[%clk 0:00:04]}  Rf5+ {[%clk 0:00:04]} 56. Ke3 {[%clk 0:00:04]}  Kg3 {[%clk 0:00:04]} 57. Ke4 {[%clk 0:00:04]}  Rg5 {[%clk 0:00:04]} 58. Rc6 {[%clk 0:00:02]}  h4 {[%clk 0:00:05]} 59. Rc4 {[%clk 0:00:03]}  h3 {[%clk 0:00:04]} 60. Rc3+ {[%clk 0:00:03]}  Kh4 {[%clk 0:00:05]} 61. Kf4 {[%clk 0:00:04]}  h2 {[%clk 0:00:04]} 62. Rc8 {[%clk 0:00:03]}  h1=Q {[%clk 0:00:03]} 0-1


[Site "https://www.chess.com"]

[Event "Titled Tuesday Blitz September 13 Early 2022"]
[White "Martinez Alcantara, Jose Eduardo"]
[Black "Mahdavi, Reza"]
[WhiteFideId "3805662"]
[BlackFideId "12595926"]
[WhiteElo "2971"]
[BlackElo "2755"]
[Result "1-0"]
[Round "03"]
[TimeControl "180+1"]
[Date "2022.09.13"]
[WhiteClock "0:00:04"]
[BlackClock "0:00:02"]

1. e4 {[%clk 0:03:00]}  c5 {[%clk 0:02:57]} 2. Nf3 {[%clk 0:03:01]}  e6 {[%clk 0:02:57]} 3. c3 {[%clk 0:03:01]}  Nf6 {[%clk 0:02:57]} 4. Bd3 {[%clk 0:03:01]}  Nc6 {[%clk 0:02:57]} 5. O-O {[%clk 0:03:00]}  d5 {[%clk 0:02:56]} 6. e5 {[%clk 0:03:00]}  Nd7 {[%clk 0:02:56]} 7. Bb5 {[%clk 0:03:01]}  a6 {[%clk 0:02:54]} 8. Bxc6 {[%clk 0:03:01]}  bxc6 {[%clk 0:02:55]} 9. d3 {[%clk 0:03:01]}  Be7 {[%clk 0:02:55]} 10. Re1 {[%clk 0:03:01]}  O-O {[%clk 0:02:56]} 11. c4 {[%clk 0:03:01]}  a5 {[%clk 0:02:56]} 12. Nc3 {[%clk 0:03:02]}  Ba6 {[%clk 0:02:57]} 13. b3 {[%clk 0:03:02]}  Qc7 {[%clk 0:02:54]} 14. Bf4 {[%clk 0:03:01]}  Rad8 {[%clk 0:02:54]} 15. Bg3 {[%clk 0:02:58]}  Qa7 {[%clk 0:02:43]} 16. Qc2 {[%clk 0:02:50]}  Nb6 {[%clk 0:02:40]} 17. h4 {[%clk 0:02:39]}  Rd7 {[%clk 0:02:36]} 18. Bf4 {[%clk 0:02:27]}  h6 {[%clk 0:02:35]} 19. Ne2 {[%clk 0:02:19]}  Rfd8 {[%clk 0:02:31]} 20. Ng3 {[%clk 0:02:19]}  a4 {[%clk 0:02:07]} 21. Nh5 {[%clk 0:02:19]}  Qc7 {[%clk 0:02:07]} 22. Qc1 {[%clk 0:02:16]}  Bf8 {[%clk 0:02:04]} 23. d4 {[%clk 0:01:56]}  cxd4 {[%clk 0:01:59]} 24. Bxh6 {[%clk 0:01:56]}  gxh6 {[%clk 0:01:54]} 25. Nf6+ {[%clk 0:01:55]}  Kg7 {[%clk 0:01:35]} 26. Qc2 {[%clk 0:01:50]}  Bb4 {[%clk 0:01:35]} 27. Qh7+ {[%clk 0:01:50]}  Kf8 {[%clk 0:01:35]} 28. Nxd4 {[%clk 0:01:41]}  Ke7 {[%clk 0:01:14]} 29. Nxd7 {[%clk 0:00:51]}  Nxd7 {[%clk 0:01:09]} 30. Nf5+ {[%clk 0:00:41]}  exf5 {[%clk 0:01:06]} 31. e6 {[%clk 0:00:42]}  Ne5 {[%clk 0:00:45]} 32. exf7 {[%clk 0:00:40]}  Rf8 {[%clk 0:00:37]} 33. Qxf5 {[%clk 0:00:39]}  Bxe1 {[%clk 0:00:37]} 34. Rxe1 {[%clk 0:00:38]}  Rxf7 {[%clk 0:00:32]} 35. Rxe5+ {[%clk 0:00:37]}  Kf8 {[%clk 0:00:33]} 36. Qh5 {[%clk 0:00:34]}  Kg7 {[%clk 0:00:30]} 37. Re6 {[%clk 0:00:33]}  Qf4 {[%clk 0:00:30]} 38. f3 {[%clk 0:00:20]}  Bc8 {[%clk 0:00:22]} 39. Qg6+ {[%clk 0:00:13]}  Kf8 {[%clk 0:00:22]} 40. Rxc6 {[%clk 0:00:12]}  Qd4+ {[%clk 0:00:21]} 41. Kf1 {[%clk 0:00:08]}  Qa1+ {[%clk 0:00:20]} 42. Kf2 {[%clk 0:00:07]}  Qd4+ {[%clk 0:00:20]} 43. Kf1 {[%clk 0:00:08]}  Bf5 {[%clk 0:00:14]} 44. Qxh6+ {[%clk 0:00:07]}  Kg8 {[%clk 0:00:15]} 45. Qg5+ {[%clk 0:00:07]}  Rg7 {[%clk 0:00:11]} 46. Qd8+ {[%clk 0:00:02]}  Kh7 {[%clk 0:00:11]} 47. Qxd5 {[%clk 0:00:03]}  Qa1+ {[%clk 0:00:10]} 48. Kf2 {[%clk 0:00:02]}  Qb2+ {[%clk 0:00:06]} 49. Ke3 {[%clk 0:00:03]}  Bg6 {[%clk 0:00:03]} 50. Re6 {[%clk 0:00:02]}  Qxg2 {[%clk 0:00:03]} 51. bxa4 {[%clk 0:00:02]}  Qg1+ {[%clk 0:00:03]} 52. Kf4 {[%clk 0:00:02]}  Qh2+ {[%clk 0:00:04]} 53. Ke3 {[%clk 0:00:02]}  Qxh4 {[%clk 0:00:05]} 54. Qe5 {[%clk 0:00:02]}  Qxc4 {[%clk 0:00:04]} 55. Qh2+ {[%clk 0:00:02]}  Kg8 {[%clk 0:00:05]} 56. Qd6 {[%clk 0:00:02]}  Qc3+ {[%clk 0:00:04]} 57. Kf2 {[%clk 0:00:02]}  Qc2+ {[%clk 0:00:04]} 58. Ke3 {[%clk 0:00:03]}  Kh7 {[%clk 0:00:04]} 59. Re5 {[%clk 0:00:03]}  Rf7 {[%clk 0:00:04]} 60. Qd5 {[%clk 0:00:02]}  Qc3+ {[%clk 0:00:04]} 61. Kf2 {[%clk 0:00:03]}  Qc2+ {[%clk 0:00:04]} 62. Re2 {[%clk 0:00:03]}  Qc3 {[%clk 0:00:03]} 63. Kg3 {[%clk 0:00:02]}  Qc1 {[%clk 0:00:03]} 64. Rh2+ {[%clk 0:00:03]}  Kg8 {[%clk 0:00:03]} 65. Qd8+ {[%clk 0:00:02]}  Rf8 {[%clk 0:00:04]} 66. Qd5+ {[%clk 0:00:02]}  Rf7 {[%clk 0:00:03]} 67. Qd4 {[%clk 0:00:02]}  Qg5+ {[%clk 0:00:02]} 68. Qg4 {[%clk 0:00:02]}  Qe5+ {[%clk 0:00:02]} 69. f4 {[%clk 0:00:03]}  Qe3+ {[%clk 0:00:03]} 70. Qf3 {[%clk 0:00:03]}  Qe6 {[%clk 0:00:03]} 71. Qa8+ {[%clk 0:00:03]}  Rf8 {[%clk 0:00:04]} 72. Qf3 {[%clk 0:00:03]}  Qf6 {[%clk 0:00:03]} 73. Qg4 {[%clk 0:00:03]}  Qc3+ {[%clk 0:00:04]} 74. Kh4 {[%clk 0:00:04]}  Qf6+ {[%clk 0:00:04]} 75. Kg3 {[%clk 0:00:04]}  Qc3+ {[%clk 0:00:04]} 76. Qf3 {[%clk 0:00:05]}  Qf6 {[%clk 0:00:05]} 77. Rh4 {[%clk 0:00:05]}  Kg7 {[%clk 0:00:05]} 78. Rg4 {[%clk 0:00:06]}  Qf5 {[%clk 0:00:06]} 79. Qb7+ {[%clk 0:00:05]}  Rf7 {[%clk 0:00:06]} 80. Qb2+ {[%clk 0:00:05]}  Kg8 {[%clk 0:00:06]} 81. Qd4 {[%clk 0:00:05]}  Rf6 {[%clk 0:00:05]} 82. Rg5 {[%clk 0:00:05]}  Qe6 {[%clk 0:00:04]} 83. Re5 {[%clk 0:00:05]}  Qxa2 {[%clk 0:00:04]} 84. Qd8+ {[%clk 0:00:05]}  Rf8 {[%clk 0:00:04]} 85. Qd7 {[%clk 0:00:05]}  Qa3+ {[%clk 0:00:04]} 86. Kg4 {[%clk 0:00:05]}  Qb3 {[%clk 0:00:02]} 87. Qd5+ {[%clk 0:00:04]}  Qxd5 {[%clk 0:00:02]} 88. Rxd5 {[%clk 0:00:05]}  Bf7 {[%clk 0:00:03]} 89. Rg5+ {[%clk 0:00:05]}  Kh7 {[%clk 0:00:03]} 90. Re5 {[%clk 0:00:06]}  Ra8 {[%clk 0:00:04]} 91. a5 {[%clk 0:00:05]}  Kg7 {[%clk 0:00:04]} 92. Kf5 {[%clk 0:00:05]}  Ra6 {[%clk 0:00:05]} 93. Rc5 {[%clk 0:00:05]}  Bg6+ {[%clk 0:00:04]} 94. Kg5 {[%clk 0:00:06]}  Bf7 {[%clk 0:00:04]} 95. f5 {[%clk 0:00:06]}  Ra7 {[%clk 0:00:04]} 96. Rb5 {[%clk 0:00:07]}  Ra6 {[%clk 0:00:04]} 97. Re5 {[%clk 0:00:06]}  Ra7 {[%clk 0:00:04]} 98. Rc5 {[%clk 0:00:06]}  Ra6 {[%clk 0:00:04]} 99. Kf4 {[%clk 0:00:06]}  Kf6 {[%clk 0:00:05]} 100. Rb5 {[%clk 0:00:06]}  Ke7 {[%clk 0:00:04]} 101. Ke5 {[%clk 0:00:05]}  Be8 {[%clk 0:00:04]} 102. Rd5 {[%clk 0:00:05]}  Bd7 {[%clk 0:00:03]} 103. Rc5 {[%clk 0:00:05]}  Rf6 {[%clk 0:00:02]} 104. Kf4 {[%clk 0:00:06]}  Ra6 {[%clk 0:00:03]} 105. Kg5 {[%clk 0:00:06]}  Kf7 {[%clk 0:00:03]} 106. Rc7 {[%clk 0:00:06]}  Ke7 {[%clk 0:00:04]} 107. f6+ {[%clk 0:00:05]}  Kd8 {[%clk 0:00:04]} 108. f7 {[%clk 0:00:04]}  Rxa5+ {[%clk 0:00:01]} 109. Kg6 {[%clk 0:00:04]}  Ke7 {[%clk 0:00:01]} 110. Rxd7+ {[%clk 0:00:04]}  Kf8 {[%clk 0:00:02]} 111. Rd8+ {[%clk 0:00:04]} 1-0


[Site "https://www.chess.com"]

[Event "Titled Tuesday Blitz September 13 Early 2022"]
[White "Milikow, Yoav"]
[Black "Danielyan, Vahe"]
[WhiteFideId "2822237"]
[BlackFideId "13304828"]
[WhiteElo "2341"]
[BlackElo "2421"]
[Result "1-0"]
[Round "03"]
[TimeControl "180+1"]
[Date "2022.09.13"]
[WhiteClock "0:00:26"]
[BlackClock "0:00:06"]

1. d4 {[%clk 0:03:00]}  Nf6 {[%clk 0:02:58]} 2. c4 {[%clk 0:03:00]}  g6 {[%clk 0:02:59]} 3. Nc3 {[%clk 0:02:58]}  Bg7 {[%clk 0:02:59]} 4. e4 {[%clk 0:02:58]}  d6 {[%clk 0:02:59]} 5. Be2 {[%clk 0:02:59]}  O-O {[%clk 0:02:57]} 6. Be3 {[%clk 0:02:58]}  e5 {[%clk 0:02:54]} 7. d5 {[%clk 0:02:58]}  Nbd7 {[%clk 0:02:53]} 8. g4 {[%clk 0:02:56]}  Nc5 {[%clk 0:02:53]} 9. f3 {[%clk 0:02:56]}  h5 {[%clk 0:02:54]} 10. b4 {[%clk 0:02:56]}  Ncd7 {[%clk 0:02:52]} 11. h4 {[%clk 0:02:52]}  a5 {[%clk 0:02:52]} 12. a3 {[%clk 0:02:49]}  Nb6 {[%clk 0:02:46]} 13. g5 {[%clk 0:02:43]}  Ne8 {[%clk 0:02:43]} 14. c5 {[%clk 0:02:42]}  Nd7 {[%clk 0:02:42]} 15. Nh3 {[%clk 0:02:37]}  dxc5 {[%clk 0:02:35]} 16. bxc5 {[%clk 0:02:36]}  b6 {[%clk 0:02:35]} 17. c6 {[%clk 0:02:32]}  Nb8 {[%clk 0:02:35]} 18. Nf2 {[%clk 0:02:28]}  Nd6 {[%clk 0:02:35]} 19. a4 {[%clk 0:02:10]}  Ba6 {[%clk 0:02:34]} 20. Nb5 {[%clk 0:02:07]}  Bc8 {[%clk 0:02:26]} 21. Bc1 {[%clk 0:01:48]}  Na6 {[%clk 0:02:26]} 22. Ba3 {[%clk 0:01:46]}  Nb4 {[%clk 0:02:23]} 23. Nd3 {[%clk 0:01:42]}  f5 {[%clk 0:01:51]} 24. Nxb4 {[%clk 0:01:38]}  axb4 {[%clk 0:01:49]} 25. Bxb4 {[%clk 0:01:39]}  fxe4 {[%clk 0:01:36]} 26. Nxd6 {[%clk 0:01:38]}  exf3 {[%clk 0:01:31]} 27. Nxc8 {[%clk 0:01:06]}  fxe2 {[%clk 0:01:27]} 28. Qb3 {[%clk 0:00:56]}  Rf1+ {[%clk 0:01:07]} 29. Kxe2 {[%clk 0:00:51]}  Rxh1 {[%clk 0:01:07]} 30. Ne7+ {[%clk 0:00:45]}  Kh7 {[%clk 0:00:15]} 31. Rxh1 {[%clk 0:00:43]}  Qe8 {[%clk 0:00:14]} 32. d6 {[%clk 0:00:33]}  cxd6 {[%clk 0:00:15]} 33. Bxd6 {[%clk 0:00:34]}  Ra7 {[%clk 0:00:08]} 34. Rc1 {[%clk 0:00:26]}  Rxe7 {[%clk 0:00:05]} 35. Bxe7 {[%clk 0:00:27]}  Qxe7 {[%clk 0:00:06]} 36. c7 {[%clk 0:00:26]}  Qd7 {[%clk 0:00:06]} 37. c8=Q {[%clk 0:00:26]} 1-0


[Site "https://www.chess.com"]

[Event "Titled Tuesday Blitz September 13 Early 2022"]
[White "Omelja, Artem"]
[Black "Ibrahimli, Murad"]
[WhiteFideId "14119846"]
[BlackFideId "13410229"]
[WhiteElo "2382"]
[BlackElo "2109"]
[Result "0-1"]
[Round "03"]
[TimeControl "180+1"]
[Date "2022.09.13"]
[WhiteClock "0:00:05"]
[BlackClock "0:01:03"]

1. d4 {[%clk 0:03:00]}  Nf6 {[%clk 0:02:59]} 2. c4 {[%clk 0:03:00]}  e6 {[%clk 0:02:59]} 3. Nf3 {[%clk 0:02:58]}  Bb4+ {[%clk 0:02:58]} 4. Bd2 {[%clk 0:02:57]}  Qe7 {[%clk 0:02:58]} 5. a3 {[%clk 0:02:43]}  Bxd2+ {[%clk 0:02:57]} 6. Qxd2 {[%clk 0:02:44]}  d5 {[%clk 0:02:55]} 7. Nc3 {[%clk 0:02:41]}  O-O {[%clk 0:02:55]} 8. e3 {[%clk 0:02:41]}  Rd8 {[%clk 0:02:54]} 9. cxd5 {[%clk 0:02:37]}  exd5 {[%clk 0:02:54]} 10. Bd3 {[%clk 0:02:35]}  Nbd7 {[%clk 0:02:49]} 11. O-O {[%clk 0:02:34]}  a5 {[%clk 0:02:46]} 12. Qc2 {[%clk 0:02:23]}  c6 {[%clk 0:02:44]} 13. Rfe1 {[%clk 0:02:18]}  h6 {[%clk 0:02:37]} 14. Rab1 {[%clk 0:02:12]}  Nb6 {[%clk 0:02:22]} 15. Ne5 {[%clk 0:01:48]}  Be6 {[%clk 0:02:21]} 16. Ne2 {[%clk 0:01:42]}  Nfd7 {[%clk 0:02:11]} 17. f4 {[%clk 0:01:23]}  Nf6 {[%clk 0:02:00]} 18. h3 {[%clk 0:01:07]}  a4 {[%clk 0:01:49]} 19. Rbc1 {[%clk 0:01:00]}  Nc4 {[%clk 0:01:35]} 20. Bxc4 {[%clk 0:00:46]}  dxc4 {[%clk 0:01:35]} 21. Nc3 {[%clk 0:00:34]}  c5 {[%clk 0:01:33]} 22. f5 {[%clk 0:00:20]}  Bd7 {[%clk 0:01:29]} 23. Nxc4 {[%clk 0:00:19]}  b5 {[%clk 0:01:28]} 24. Ne5 {[%clk 0:00:18]}  b4 {[%clk 0:01:26]} 25. Ne2 {[%clk 0:00:13]}  cxd4 {[%clk 0:01:17]} 26. exd4 {[%clk 0:00:14]}  Rac8 {[%clk 0:01:16]} 27. Qd3 {[%clk 0:00:10]}  bxa3 {[%clk 0:01:15]} 28. Qxa3 {[%clk 0:00:07]}  Qxa3 {[%clk 0:01:12]} 29. bxa3 {[%clk 0:00:08]}  Bxf5 {[%clk 0:01:12]} 30. Kf2 {[%clk 0:00:05]}  Be6 {[%clk 0:01:05]} 31. Rc5 {[%clk 0:00:04]}  Ne4+ {[%clk 0:01:03]} 32. Ke3 {[%clk 0:00:04]}  Nxc5 {[%clk 0:01:04]} 33. d5 {[%clk 0:00:05]}  Rxd5 {[%clk 0:01:03]} 0-1


[Site "https://www.chess.com"]

[Event "Titled Tuesday Blitz September 13 Early 2022"]
[White "Oparin, Grigoriy"]
[Black "Aradhya, Garg"]
[WhiteFideId "24125890"]
[BlackFideId "25006746"]
[WhiteElo "2639"]
[BlackElo "2223"]
[Result "1-0"]
[Round "03"]
[TimeControl "180+1"]
[Date "2022.09.13"]
[WhiteClock "0:00:20"]
[BlackClock "0:00:04"]

1. d4 {[%clk 0:03:00]}  d5 {[%clk 0:02:59]} 2. Bg5 {[%clk 0:03:00]}  h6 {[%clk 0:02:59]} 3. Bh4 {[%clk 0:02:59]}  c5 {[%clk 0:02:59]} 4. c3 {[%clk 0:02:57]}  Qb6 {[%clk 0:02:52]} 5. Qd2 {[%clk 0:02:55]}  cxd4 {[%clk 0:02:11]} 6. cxd4 {[%clk 0:02:56]}  e5 {[%clk 0:02:11]} 7. e3 {[%clk 0:02:51]}  Nc6 {[%clk 0:02:07]} 8. Nf3 {[%clk 0:02:34]}  e4 {[%clk 0:02:00]} 9. Ne5 {[%clk 0:02:34]}  Bd6 {[%clk 0:01:48]} 10. Nc3 {[%clk 0:02:33]}  Be6 {[%clk 0:01:47]} 11. Bg3 {[%clk 0:02:22]}  Bxe5 {[%clk 0:01:18]} 12. Bxe5 {[%clk 0:02:22]}  f6 {[%clk 0:01:15]} 13. Bg3 {[%clk 0:02:20]}  Nge7 {[%clk 0:01:15]} 14. h3 {[%clk 0:02:15]}  O-O {[%clk 0:01:12]} 15. Be2 {[%clk 0:02:10]}  Nf5 {[%clk 0:01:10]} 16. Bh2 {[%clk 0:02:10]}  Rfc8 {[%clk 0:00:58]} 17. O-O {[%clk 0:02:10]}  Qd8 {[%clk 0:00:57]} 18. Rfc1 {[%clk 0:02:06]}  Nd6 {[%clk 0:00:52]} 19. Nb5 {[%clk 0:02:02]}  Nxb5 {[%clk 0:00:42]} 20. Bxb5 {[%clk 0:02:03]}  Qd7 {[%clk 0:00:42]} 21. Rc3 {[%clk 0:01:59]}  a6 {[%clk 0:00:39]} 22. Be2 {[%clk 0:01:58]}  Ne7 {[%clk 0:00:35]} 23. Rc5 {[%clk 0:01:54]}  Rc6 {[%clk 0:00:13]} 24. Rac1 {[%clk 0:01:49]}  Rac8 {[%clk 0:00:14]} 25. b4 {[%clk 0:01:49]}  b6 {[%clk 0:00:14]} 26. Rxc6 {[%clk 0:01:37]}  Rxc6 {[%clk 0:00:15]} 27. a3 {[%clk 0:00:52]}  Qc8 {[%clk 0:00:13]} 28. Rxc6 {[%clk 0:00:51]}  Nxc6 {[%clk 0:00:13]} 29. Qc3 {[%clk 0:00:45]}  a5 {[%clk 0:00:09]} 30. b5 {[%clk 0:00:41]}  Na7 {[%clk 0:00:07]} 31. Qxc8+ {[%clk 0:00:40]}  Nxc8 {[%clk 0:00:07]} 32. h4 {[%clk 0:00:39]}  Kf7 {[%clk 0:00:07]} 33. f3 {[%clk 0:00:40]}  f5 {[%clk 0:00:06]} 34. h5 {[%clk 0:00:40]}  Ke7 {[%clk 0:00:06]} 35. Be5 {[%clk 0:00:39]}  Kf7 {[%clk 0:00:06]} 36. Kf2 {[%clk 0:00:39]}  Ne7 {[%clk 0:00:06]} 37. Bc7 {[%clk 0:00:38]}  Nc8 {[%clk 0:00:06]} 38. Kg3 {[%clk 0:00:37]}  Bd7 {[%clk 0:00:05]} 39. Kf4 {[%clk 0:00:36]}  Ke6 {[%clk 0:00:05]} 40. Be5 {[%clk 0:00:33]}  Kf7 {[%clk 0:00:04]} 41. g4 {[%clk 0:00:34]}  fxg4 {[%clk 0:00:03]} 42. fxe4 {[%clk 0:00:34]}  dxe4 {[%clk 0:00:03]} 43. Kxe4 {[%clk 0:00:31]}  g6 {[%clk 0:00:03]} 44. hxg6+ {[%clk 0:00:23]}  Kxg6 {[%clk 0:00:04]} 45. Kf4 {[%clk 0:00:22]}  Ne7 {[%clk 0:00:04]} 46. e4 {[%clk 0:00:23]}  h5 {[%clk 0:00:03]} 47. Bc7 {[%clk 0:00:22]}  h4 {[%clk 0:00:03]} 48. Bd8 {[%clk 0:00:17]}  h3 {[%clk 0:00:03]} 49. Kg3 {[%clk 0:00:17]}  Kf7 {[%clk 0:00:03]} 50. Bxb6 {[%clk 0:00:16]}  a4 {[%clk 0:00:02]} 51. Bc7 {[%clk 0:00:16]}  Ng6 {[%clk 0:00:03]} 52. b6 {[%clk 0:00:16]}  Bc8 {[%clk 0:00:03]} 53. d5 {[%clk 0:00:16]}  Ne7 {[%clk 0:00:02]} 54. Bxg4 {[%clk 0:00:16]}  Bxg4 {[%clk 0:00:02]} 55. Kxg4 {[%clk 0:00:17]}  Nc8 {[%clk 0:00:02]} 56. b7 {[%clk 0:00:17]}  Nd6 {[%clk 0:00:02]} 57. Bxd6 {[%clk 0:00:17]}  h2 {[%clk 0:00:02]} 58. Bxh2 {[%clk 0:00:17]}  Kf6 {[%clk 0:00:03]} 59. b8=Q {[%clk 0:00:18]}  Kg7 {[%clk 0:00:03]} 60. Qd6 {[%clk 0:00:18]}  Kf7 {[%clk 0:00:04]} 61. Kf5 {[%clk 0:00:19]}  Kg7 {[%clk 0:00:04]} 62. Qg6+ {[%clk 0:00:19]}  Kh8 {[%clk 0:00:05]} 63. Qg5 {[%clk 0:00:18]}  Kh7 {[%clk 0:00:06]} 64. Kf6 {[%clk 0:00:19]}  Kh8 {[%clk 0:00:04]} 65. Qg7# {[%clk 0:00:20]} 1-0


[Site "https://www.chess.com"]

[Event "Titled Tuesday Blitz September 13 Early 2022"]
[White "Pap, Gyula"]
[Black "Jovic, Stanoje"]
[WhiteFideId "725323"]
[BlackFideId "905020"]
[WhiteElo "2519"]
[BlackElo "2238"]
[Result "1-0"]
[Round "03"]
[TimeControl "180+1"]
[Date "2022.09.13"]
[WhiteClock "0:00:25"]
[BlackClock "0:00:05"]

1. d4 {[%clk 0:03:00]}  Nf6 {[%clk 0:02:59]} 2. c4 {[%clk 0:03:00]}  e6 {[%clk 0:02:59]} 3. Nc3 {[%clk 0:03:00]}  Bb4 {[%clk 0:02:58]} 4. Qb3 {[%clk 0:02:59]}  a5 {[%clk 0:02:56]} 5. a3 {[%clk 0:02:59]}  Bxc3+ {[%clk 0:02:56]} 6. Qxc3 {[%clk 0:03:00]}  a4 {[%clk 0:02:55]} 7. Bg5 {[%clk 0:02:54]}  h6 {[%clk 0:02:50]} 8. Bh4 {[%clk 0:02:54]}  d6 {[%clk 0:02:43]} 9. e3 {[%clk 0:02:53]}  Nbd7 {[%clk 0:02:35]} 10. Bd3 {[%clk 0:02:53]}  c5 {[%clk 0:02:34]} 11. Ne2 {[%clk 0:02:50]}  Qa5 {[%clk 0:02:34]} 12. O-O {[%clk 0:02:44]}  Qxc3 {[%clk 0:02:33]} 13. Nxc3 {[%clk 0:02:45]}  b6 {[%clk 0:02:19]} 14. Rfd1 {[%clk 0:02:38]}  Bb7 {[%clk 0:02:14]} 15. Bc2 {[%clk 0:02:37]}  cxd4 {[%clk 0:01:57]} 16. Rxd4 {[%clk 0:02:18]}  Ke7 {[%clk 0:01:41]} 17. Bxa4 {[%clk 0:02:14]}  Nc5 {[%clk 0:01:31]} 18. Bc2 {[%clk 0:02:14]}  Rhd8 {[%clk 0:01:19]} 19. Rad1 {[%clk 0:02:12]}  e5 {[%clk 0:01:11]} 20. R4d2 {[%clk 0:02:11]}  g5 {[%clk 0:01:10]} 21. Bg3 {[%clk 0:02:11]}  Nce4 {[%clk 0:01:09]} 22. Bxe4 {[%clk 0:01:52]}  Nxe4 {[%clk 0:01:08]} 23. Nd5+ {[%clk 0:01:38]}  Bxd5 {[%clk 0:01:04]} 24. Rxd5 {[%clk 0:01:39]}  Nxg3 {[%clk 0:00:59]} 25. hxg3 {[%clk 0:01:38]}  Ra4 {[%clk 0:00:55]} 26. Rb5 {[%clk 0:01:25]}  Rb8 {[%clk 0:00:50]} 27. Rc1 {[%clk 0:01:12]}  f5 {[%clk 0:00:41]} 28. Kf1 {[%clk 0:01:08]}  Kd7 {[%clk 0:00:38]} 29. Ke2 {[%clk 0:01:08]}  Kc6 {[%clk 0:00:38]} 30. Kd3 {[%clk 0:01:07]}  h5 {[%clk 0:00:34]} 31. Rb4 {[%clk 0:01:00]}  Rxb4 {[%clk 0:00:31]} 32. axb4 {[%clk 0:01:01]}  Rh8 {[%clk 0:00:28]} 33. Rh1 {[%clk 0:00:58]}  b5 {[%clk 0:00:25]} 34. b3 {[%clk 0:00:57]}  Rh7 {[%clk 0:00:24]} 35. Kc3 {[%clk 0:00:56]}  Rh8 {[%clk 0:00:24]} 36. Ra1 {[%clk 0:00:56]}  Kb6 {[%clk 0:00:19]} 37. Ra5 {[%clk 0:00:36]}  bxc4 {[%clk 0:00:18]} 38. bxc4 {[%clk 0:00:37]}  h4 {[%clk 0:00:18]} 39. gxh4 {[%clk 0:00:37]}  Rxh4 {[%clk 0:00:18]} 40. c5+ {[%clk 0:00:38]}  dxc5 {[%clk 0:00:15]} 41. Rxc5 {[%clk 0:00:39]}  Rg4 {[%clk 0:00:11]} 42. Rxe5 {[%clk 0:00:38]}  f4 {[%clk 0:00:09]} 43. exf4 {[%clk 0:00:31]}  gxf4 {[%clk 0:00:09]} 44. Rf5 {[%clk 0:00:28]}  Rxg2 {[%clk 0:00:08]} 45. Rxf4 {[%clk 0:00:28]}  Rg1 {[%clk 0:00:08]} 46. Kd4 {[%clk 0:00:25]}  Kb5 {[%clk 0:00:05]} 47. Ke5 {[%clk 0:00:25]} 1-0


[Site "https://www.chess.com"]